[Event "WYCC 2018 O14"]
[Site "Halkidiki"]
[Date "2018.10.28"]
[Round "9"]
[White "Srihari L R"]
[Black "Naqopia, Giorgi"]
[Result "1-0"]
[ECO "E67"]
[WhiteElo "2170"]
[BlackElo "1857"]
[Annotator "NA"]
[PlyCount "121"]
[EventDate "2018.10.20"]
[EventType "swiss"]
[EventCountry "GRE"]
[SourceTitle "playchess.com"]
[Source "ChessBase"]
[SourceQuality "1"]
[TimeControl "40/5400+30:1800+30"]

1. Nf3 {[%emt 0:00:00]} d6 {[%emt 0:01:07]} 2. d4 {[%emt 0:04:49]} Nd7 {[%emt 0:00:08]} 3. c4 {[%emt 0:00:24]} g6 {[%emt 0:00:45]} 4. Nc3 {[%emt 0:00:16]} Bg7 {[%emt 0:00:05]} 5. g3 {[%emt 0:08:06]} Ngf6 {[%emt 0:02:28]} 6. Bg2 {[%emt 0:00:18]} O-O {[%emt 0:00:08]} 7. O-O {[%emt 0:00:02]} c6 {[%emt 0:00:08]} 8. d5 {[%emt 0:04:03]} cxd5 {[%emt 0:07:38]} 9. cxd5 {[%emt 0:00:11]} a6 {[%emt 0:06:59]} 10. a4 {[%emt 0:00:26]} Ng4 {[%emt 0:04:36]} 11. h3 {[%emt 0:01:21]} Nge5 {[%emt 0:00:08]} 12. Nd4 {[%emt 0:00:20]} Qb6 {[%emt 0:04:24]} 13. e3 {[%emt 0:05:06]} Nc5 {[%emt 0:06:52]} 14. a5 {[%emt 0:05:41]} Qc7 {[%emt 0:00:12]} 15. Qc2 {[%emt 0:00:32]} Bd7 {[%emt 0:07:28]} 16. Rd1 {[%emt 0:04:45]} Rfc8 {[%emt 0:06:46]} 17. Bf1 {[%emt 0:01:42]} Bf5 {[%emt 0:18:59]} 18. Nxf5 {[%emt 0:08:28]} gxf5 {[%emt 0:00:46]} 19. f4 {[%emt 0:10:58]} Ng6 {[%emt 0:07:06]} 20. g4 {[%emt 0:11:49]} fxg4 {[%emt 0:03:37]} 21. hxg4 {[%emt 0:00:19]} b5 {[%emt 0:00:36]} 22. Ne4 {[%emt 0:11:39]} Nxe4 {[%emt 0:04:25]} 23. Qxe4 {[%emt 0:01:04]} Qc2 {[%emt 0:00:13]} 24. Qxc2 {[%emt 0:04:44]} Rxc2 {[%emt 0:00:03]} 25. Bd3 {[%emt 0:01:33]} Rc5 {[%emt 0:01:54]} 26. e4 {[%emt 0:07:52]} Bd4+ {[%emt 0:06:15]} 27. Kh2 {[%emt 0:01:54]} e5 {[%emt 0:05:43]} 28. dxe6 {[%emt 0:01:10]} fxe6 {[%emt 0:00:06]} 29. Bxb5 {[%emt 0:00:11]} Rc2+ {[%emt 0:00:07]} 30. Kh1 {[%emt 0:00:45]} Bxb2 {[%emt 0:01:54]} 31. Bxb2 {[%emt 0:02:46]} Rxb2 {[%emt 0:01:55]} 32. Bc4 {[%emt 0:02:04]} d5 {[%emt 0:00:26]} 33. exd5 {[%emt 0:00:17]} Rc8 {[%emt 0:00:07]} 34. Rac1 {[%emt 0:00:43]} Nxf4 {[%emt 0:01:09]} 35. d6 {[%emt 0:00:12]} Rd8 {[%emt 0:00:52]} 36. d7 {[%emt 0:00:39]} Kf8 {[%emt 0:01:07]} 37. Bxa6 {[%emt 0:00:47]} Ke7 {[%emt 0:00:08]} 38. Bc8 {[%emt 0:00:26]} h5 {[%emt 0:00:17]} 39. Rb1 {[%emt 0:00:23]} Rc2 {[%emt 0:00:46]} 40. Rdc1 {[%emt 0:00:00]} Rd2 {[%emt 0:00:00]} 41. Rd1 {[%emt 0:03:10]} Rc2 {[%emt 0:03:10]} 42. Rf1 {[%emt 0:13:18]} Ne2 {[%emt 0:02:50]} 43. Rf2 {[%emt 0:12:09]} hxg4 {[%emt 0:00:18]} 44. Rbf1 {[%emt 0:00:36]} Rh8+ {[%emt 0:08:41]} 45. Kg2 {[%emt 0:00:07]} g3 {[%emt 0:01:06]} 46. Rf7+ {[%emt 0:00:33]} Kd6 {[%emt 0:00:06]} 47. Rh7 {[%emt 0:03:09]} Nd4+ {[%emt 0:06:42]} 48. Kg1 {[%emt 0:00:24]} Ne2+ {[%emt 0:00:24]} 49. Kg2 {[%emt 0:00:01]} Nd4+ {[%emt 0:00:09]} 50. Kxg3 {[%emt 0:00:45]} Rg8+ {[%emt 0:00:04]} 51. Kh3 {[%emt 0:01:33]} Rd2 {[%emt 0:11:25]} 52. a6 {[%emt 0:00:56]} Nf5 {[%emt 0:00:27]} 53. Rg1 {[%emt 0:00:25]} Rd3+ {[%emt 0:00:19]} 54. Kh2 {[%emt 0:00:08]} Rd2+ {[%emt 0:00:05]} 55. Kh1 {[%emt 0:00:17]} Rxg1+ {[%emt 0:02:47]} 56. Kxg1 {[%emt 0:00:02]} Kc7 {[%emt 0:00:25]} 57. a7 {[%emt 0:01:33]} Ra2 {[%emt 0:00:05]} 58. d8=Q+ {[%emt 0:00:09]} Kxd8 {[%emt 0:00:05]} 59. Bxe6 {[%emt 0:00:05]} Ra1+ {[%emt 0:00:30]} 60. Kf2 {[%emt 0:00:17]} Nd4 {[%emt 0:01:18]} 61. Bd5 {[%emt 0:00:11]} 1-0

[Event "WYCC 2018 O14"]
[Site "Halkidiki"]
[Date "2018.10.28"]
[Round "9"]
[White "Mishra, Abhimanyu"]
[Black "Radojicic, Aleksandar M"]
[Result "1-0"]
[ECO "B28"]
[WhiteElo "2149"]
[BlackElo "1814"]
[Annotator "NA"]
[PlyCount "101"]
[EventDate "2018.10.20"]
[EventType "swiss"]
[EventCountry "GRE"]
[SourceTitle "playchess.com"]
[Source "ChessBase"]
[SourceQuality "1"]
[TimeControl "40/5400+30:1800+30"]

1. e4 {[%emt 0:00:00]} c5 {[%emt 0:00:00]} 2. Nf3 {[%emt 0:00:00]} a6 {[%emt 0:00:00]} 3. c4 {[%emt 0:00:00]} Nc6 {[%emt 0:00:00]} 4. d4 {[%emt 0:00:10]} cxd4 {[%emt 0:00:25]} 5. Nxd4 {[%emt 0:00:04]} e5 {[%emt 0:00:08]} 6. Nc2 {[%emt 0:01:01]} Bc5 {[%emt 0:01:25]} 7. Nc3 {[%emt 0:15:36]} d6 {[%emt 0:01:35]} 8. Be3 {[%emt 0:09:27]} Bxe3 {[%emt 0:09:20]} 9. Nxe3 {[%emt 0:01:04]} Be6 {[%emt 0:00:42]} 10. Bd3 {[%emt 0:03:53]} Nge7 {[%emt 0:08:35]} 11. O-O {[%emt 0:05:22]} O-O {[%emt 0:04:05]} 12. Qd2 {[%emt 0:08:26]} Qc7 {[%emt 0:16:54]} 13. Rac1 {[%emt 0:05:30]} Nd4 {[%emt 0:00:48]} 14. Ne2 {[%emt 0:05:10]} Nxe2+ {[%emt 0:04:16]} 15. Bxe2 {[%emt 0:02:48]} Rfd8 {[%emt 0:05:04]} 16. Rfd1 {[%emt 0:02:33]} Rac8 {[%emt 0:03:04]} 17. b3 {[%emt 0:07:20]} Qb6 {[%emt 0:04:41]} 18. Rc3 {[%emt 0:05:58]} Rd7 {[%emt 0:12:55]} 19. Rd3 {[%emt 0:07:18]} Rcd8 {[%emt 0:00:28]} 20. Qb2 {[%emt 0:01:38]} Qc6 {[%emt 0:01:55]} 21. Nd5 {[%emt 0:01:59]} Bxd5 {[%emt 0:02:37]} 22. cxd5 {[%emt 0:01:24]} Qb6 {[%emt 0:01:23]} 23. Bg4 {[%emt 0:01:54]} Rc7 {[%emt 0:00:31]} 24. Rc1 {[%emt 0:00:52]} Rc5 {[%emt 0:03:26]} 25. Rdc3 {[%emt 0:02:23]} Rxc3 {[%emt 0:04:47]} 26. Qxc3 {[%emt 0:00:00]} f5 {[%emt 0:01:17]} 27. Bxf5 {[%emt 0:02:01]} Nxf5 {[%emt 0:00:13]} 28. exf5 {[%emt 0:00:01]} Qb5 {[%emt 0:01:23]} 29. Qc7 {[%emt 0:02:44]} Qd7 {[%emt 0:00:31]} 30. f3 {[%emt 0:02:31]} Kf7 {[%emt 0:01:32]} 31. g4 {[%emt 0:02:24]} Ke7 {[%emt 0:01:12]} 32. Kf2 {[%emt 0:01:27]} h6 {[%emt 0:03:24]} 33. Kg3 {[%emt 0:01:30]} g5 {[%emt 0:03:33]} 34. Qxd7+ {[%emt 0:01:49]} Rxd7 {[%emt 0:00:58]} 35. h4 {[%emt 0:00:11]} Kf6 {[%emt 0:00:50]} 36. hxg5+ {[%emt 0:00:38]} Kxg5 {[%emt 0:00:10]} 37. Rc8 {[%emt 0:00:35]} Kf6 {[%emt 0:01:52]} 38. Re8 {[%emt 0:00:31]} Kf7 {[%emt 0:02:29]} 39. Re6 {[%emt 0:00:14]} Kg7 {[%emt 0:00:12]} 40. Rg6+ {[%emt 0:00:00]} Kh7 {[%emt 0:00:00]} 41. Kh4 {[%emt 0:01:14]} a5 {[%emt 0:02:30]} 42. Kh5 {[%emt 0:00:13]} b5 43. Rxh6+ {[%emt 0:00:13]} Kg7 {[%emt 0:00:40]} 44. f6+ {[%emt 0:00:34]} Kg8 {[%emt 0:00:15]} 45. Kg6 {[%emt 0:00:25]} b4 {[%emt 0:01:11]} 46. g5 {[%emt 0:00:35]} a4 {[%emt 0:00:26]} 47. f7+ {[%emt 0:00:31]} Rxf7 {[%emt 0:00:03]} 48. Rh8+ {[%emt 0:00:10]} Kxh8 {[%emt 0:00:04]} 49. Kxf7 {[%emt 0:00:08]} e4 {[%emt 0:00:11]} 50. g6 {[%emt 0:00:15]} axb3 {[%emt 0:00:09]} 51. g7+ {[%emt 0:00:05]} 1-0

[Event "WYCC 2018 O14"]
[Site "Halkidiki"]
[Date "2018.10.28"]
[Round "9"]
[White "Risteski, Emil"]
[Black "Fecker, Noah"]
[Result "1/2-1/2"]
[ECO "B47"]
[WhiteElo "2120"]
[BlackElo "2184"]
[Annotator "NA"]
[PlyCount "50"]
[EventDate "2018.10.20"]
[EventType "swiss"]
[EventCountry "GRE"]
[SourceTitle "playchess.com"]
[Source "ChessBase"]
[SourceQuality "1"]
[TimeControl "40/5400+30:1800+30"]

1. e4 {[%emt 0:00:00]} c5 {[%emt 0:00:00]} 2. Nf3 {[%emt 0:00:00]} e6 {[%emt 0:00:00]} 3. d4 {[%emt 0:00:11]} cxd4 {[%emt 0:00:00]} 4. Nxd4 {[%emt 0:00:06]} Nc6 {[%emt 0:00:00]} 5. Nc3 {[%emt 0:00:08]} Qc7 {[%emt 0:00:00]} 6. f4 {[%emt 0:00:08]} a6 {[%emt 0:00:18]} 7. Nxc6 {[%emt 0:00:09]} Qxc6 {[%emt 0:00:09]} 8. Bd3 {[%emt 0:00:09]} b5 {[%emt 0:02:56]} 9. Qe2 {[%emt 0:00:17]} Bb7 {[%emt 0:00:15]} 10. Bd2 {[%emt 0:00:10]} Bc5 {[%emt 0:00:08]} 11. O-O-O {[%emt 0:00:14]} Ne7 {[%emt 0:00:03]} 12. a3 {[%emt 0:00:31]} O-O {[%emt 0:00:12]} 13. Qh5 {[%emt 0:01:01]} f6 {[%emt 0:00:02]} 14. g4 {[%emt 0:01:23]} Rac8 {[%emt 0:08:29]} 15. Rhf1 {[%emt 0:03:00]} Qb6 {[%emt 0:05:17]} 16. f5 {[%emt 0:13:07]} exf5 {[%emt 0:34:10]} 17. gxf5 {[%emt 0:15:03]} Rf7 {[%emt 0:05:53]} 18. Rf3 {[%emt 0:10:32]} d5 {[%emt 0:03:42]} 19. Rh3 {[%emt 0:06:08]} h6 {[%emt 0:06:14]} 20. Nxd5 {[%emt 0:06:54]} Nxd5 {[%emt 0:03:31]} 21. exd5 {[%emt 0:00:09]} b4 {[%emt 0:02:00]} 22. a4 {[%emt 0:14:54]} b3 {[%emt 0:06:17]} 23. c3 {[%emt 0:01:22]} Re8 {[%emt 0:08:02]} 24. d6 {[%emt 0:07:53]} Bd5 {[%emt 0:04:05]} 25. Bxh6 {[%emt 0:01:20]} Qxd6 {[%emt 0:04:59]} 1/2-1/2

[Event "WYCC 2018 O14"]
[Site "Halkidiki"]
[Date "2018.10.28"]
[Round "9"]
[White "Antonica, Dragos-Andrei"]
[Black "Egorov, Mikhail"]
[Result "1-0"]
[ECO "D02"]
[WhiteElo "2061"]
[BlackElo "2006"]
[Annotator "NA RC"]
[PlyCount "61"]
[EventDate "2018.10.20"]
[EventType "swiss"]
[EventCountry "GRE"]
[SourceTitle "playchess.com"]
[Source "ChessBase"]
[SourceQuality "1"]
[TimeControl "40/5400+30:1800+30"]

1. d4 {[%emt 0:00:00]} d5 {[%emt 0:00:00]} 2. Nf3 {[%emt 0:00:15]} Nc6 {[%emt 0:00:00]} 3. c4 {[%emt 0:00:37]} Bg4 {[%emt 0:00:00]} 4. Nc3 {[%emt 0:00:57]} Nf6 {[%emt 0:00:35]} 5. Ne5 {[%emt 0:05:52]} dxc4 {[%emt 0:13:09]} 6. Nxg4 {[%emt 0:16:03]} Nxg4 {[%emt 0:00:09]} 7. d5 {[%emt 0:00:14]} Nce5 {[%emt 0:02:39]} 8. f4 {[%emt 0:04:51]} Nd7 {[%emt 0:04:42]} 9. e4 {[%emt 0:01:04]} Nh6 {[%emt 0:03:46]} 10. Bxc4 {[%emt 0:06:22]} g6 {[%emt 0:02:24]} 11. Qd4 {[%emt 0:07:35]} f6 {[%emt 0:00:40]} 12. O-O {[%emt 0:10:03]} Bg7 {[%emt 0:00:12]} 13. b3 {[%emt 0:00:45]} Nb6 {[%emt 0:01:17]} 14. Bb2 {[%emt 0:02:33]} e5 {[%emt 0:07:10]} 15. fxe5 fxe5 {[%emt 0:00:05]} 16. Qc5 {[%emt 0:09:32]} Nxc4 {[%emt 0:00:42]} 17. bxc4 {[%emt 0:01:45]} Qd6 {[%emt 0:06:49]} 18. Qb5+ {[%emt 0:05:57]} c6 {[%emt 0:02:26]} 19. Qxb7 {[%emt 0:01:08]} Rb8 {[%emt 0:01:35]} 20. Qxg7 {[%emt 0:00:22]} Rg8 {[%emt 0:00:20]} 21. Qxh6 {[%emt 0:00:23]} Rxb2 {[%emt 0:00:13]} 22. Qxh7 {[%emt 0:00:24]} Rf8 {[%emt 0:01:26]} 23. Rxf8+ {[%emt 0:00:12]} Qxf8 {[%emt 0:00:08]} 24. Qxg6+ {[%emt 0:00:08]} Kd8 {[%emt 0:00:09]} 25. Rf1 {[%emt 0:00:47]} Qc5+ {[%emt 0:00:05]} 26. Kh1 {[%emt 0:00:04]} Rf2 {[%emt 0:00:17]} 27. Qg5+ {[%emt 0:00:35]} Kc7 {[%emt 0:00:14]} 28. Qxe5+ {[%emt 0:00:06]} Kb6 {[%emt 0:00:34]} 29. Rb1+ {[%emt 0:01:59]} Ka6 {[%emt 0:00:06]} 30. Qc7 {[%emt 0:00:58]} Qb4 {[%emt 0:01:11]} 31. Qxc6+ {[%emt 0:01:23]} 1-0

[Event "WYCC 2018 O14"]
[Site "Halkidiki"]
[Date "2018.10.28"]
[Round "9"]
[White "Stremavicius, Pijus"]
[Black "Vitenberg, Noam Aviv"]
[Result "1/2-1/2"]
[ECO "E04"]
[WhiteElo "2024"]
[BlackElo "2175"]
[Annotator "NA"]
[PlyCount "88"]
[EventDate "2018.10.20"]
[EventType "swiss"]
[EventCountry "GRE"]
[SourceTitle "playchess.com"]
[Source "ChessBase"]
[SourceQuality "1"]
[TimeControl "40/5400+30:1800+30"]

1. d4 {[%emt 0:00:00]} d5 {[%emt 0:00:00]} 2. Nf3 {[%emt 0:00:01]} Nf6 {[%emt 0:00:00]} 3. c4 {[%emt 0:00:16]} e6 {[%emt 0:00:00]} 4. g3 {[%emt 0:00:31]} dxc4 {[%emt 0:00:25]} 5. Bg2 {[%emt 0:00:03]} a6 {[%emt 0:00:13]} 6. Ne5 {[%emt 0:00:20]} Bb4+ {[%emt 0:00:11]} 7. Nc3 {[%emt 0:00:02]} Nd5 {[%emt 0:00:47]} 8. Bd2 {[%emt 0:00:07]} Nb6 {[%emt 0:01:41]} 9. e3 {[%emt 0:00:25]} Bd6 {[%emt 0:06:46]} 10. Nf3 {[%emt 0:02:05]} O-O {[%emt 0:01:25]} 11. O-O {[%emt 0:00:57]} N8d7 {[%emt 0:11:04]} 12. Qc2 {[%emt 0:02:06]} e5 {[%emt 0:03:40]} 13. Ne4 {[%emt 0:02:34]} Re8 {[%emt 0:13:33]} 14. Nxd6 {[%emt 0:06:37]} cxd6 {[%emt 0:00:12]} 15. dxe5 {[%emt 0:00:09]} dxe5 {[%emt 0:09:11]} 16. Ba5 {[%emt 0:02:15]} Qe7 {[%emt 0:00:40]} 17. a3 {[%emt 0:02:34]} Qc5 {[%emt 0:16:59]} 18. Bb4 {[%emt 0:00:23]} Qb5 {[%emt 0:01:05]} 19. Rfc1 {[%emt 0:02:37]} a5 {[%emt 0:06:46]} 20. Bd6 {[%emt 0:11:55]} Ra6 {[%emt 0:03:51]} 21. a4 {[%emt 0:11:02]} Nxa4 {[%emt 0:10:02]} 22. Rxa4 {[%emt 0:02:31]} Rxd6 {[%emt 0:00:55]} 23. Rxc4 {[%emt 0:00:04]} Nb6 {[%emt 0:02:36]} 24. Rc5 {[%emt 0:00:05]} Qb4 {[%emt 0:00:39]} 25. Rxe5 {[%emt 0:03:58]} Red8 {[%emt 0:02:42]} 26. Nd4 {[%emt 0:02:37]} Be6 {[%emt 0:05:16]} 27. b3 {[%emt 0:04:16]} Bd5 {[%emt 0:02:02]} 28. Qf5 {[%emt 0:07:04]} Bxg2 {[%emt 0:00:12]} 29. Kxg2 {[%emt 0:00:13]} Rf6 {[%emt 0:00:37]} 30. Qd3 {[%emt 0:02:12]} a4 {[%emt 0:00:44]} 31. bxa4 {[%emt 0:01:13]} Qxa4 {[%emt 0:00:12]} 32. Qb5 {[%emt 0:00:11]} Qxb5 {[%emt 0:00:28]} 33. Rxb5 {[%emt 0:00:02]} Kf8 {[%emt 0:00:56]} 34. Rc7 {[%emt 0:00:23]} Rb8 {[%emt 0:00:27]} 35. g4 {[%emt 0:00:18]} h6 {[%emt 0:00:38]} 36. h4 {[%emt 0:00:12]} g6 {[%emt 0:00:20]} 37. Re5 {[%emt 0:00:36]} Nc8 {[%emt 0:00:35]} 38. Rb5 {[%emt 0:02:46]} Nd6 {[%emt 0:00:19]} 39. Rb6 {[%emt 0:03:13]} Ne4 {[%emt 0:00:16]} 40. Rxf6 {[%emt 0:00:00]} Nxf6 {[%emt 0:00:00]} 41. Kf3 {[%emt 0:02:03]} Ne8 {[%emt 0:04:58]} 42. Rd7 {[%emt 0:02:06]} Nf6 {[%emt 0:07:43]} 43. Rc7 {[%emt 0:00:35]} Ne8 {[%emt 0:02:46]} 44. Rd7 b5 1/2-1/2

[Event "WYCC 2018 O14"]
[Site "Halkidiki"]
[Date "2018.10.28"]
[Round "9"]
[White "Boulos, Carlos"]
[Black "Galkin, Gleb"]
[Result "0-1"]
[ECO "C49"]
[WhiteElo "2003"]
[BlackElo "2134"]
[Annotator "NA"]
[PlyCount "118"]
[EventDate "2018.10.20"]
[EventType "swiss"]
[EventCountry "GRE"]
[SourceTitle "playchess.com"]
[Source "ChessBase"]
[SourceQuality "1"]
[TimeControl "40/5400+30:1800+30"]

1. e4 {[%emt 0:00:00]} e5 {[%emt 0:00:00]} 2. Nf3 {[%emt 0:00:00]} Nc6 {[%emt 0:00:00]} 3. Nc3 {[%emt 0:00:03]} Nf6 {[%emt 0:00:00]} 4. Bb5 {[%emt 0:00:22]} Bb4 {[%emt 0:00:00]} 5. O-O {[%emt 0:00:34]} O-O {[%emt 0:00:00]} 6. d3 {[%emt 0:00:08]} d6 {[%emt 0:00:02]} 7. Bg5 {[%emt 0:00:19]} Ne7 {[%emt 0:00:25]} 8. Nh4 {[%emt 0:01:57]} c6 {[%emt 0:02:33]} 9. Bxf6 {[%emt 0:07:55]} gxf6 {[%emt 0:02:08]} 10. Bc4 {[%emt 0:04:07]} d5 {[%emt 0:10:04]} 11. Bb3 {[%emt 0:01:03]} Bxc3 {[%emt 0:13:00]} 12. bxc3 {[%emt 0:00:16]} dxe4 {[%emt 0:00:18]} 13. dxe4 {[%emt 0:02:28]} Qxd1 {[%emt 0:00:37]} 14. Raxd1 {[%emt 0:00:14]} Ng6 {[%emt 0:01:20]} 15. Nxg6 {[%emt 0:02:08]} hxg6 {[%emt 0:00:08]} 16. Rd6 {[%emt 0:01:00]} Kg7 {[%emt 0:02:40]} 17. f4 {[%emt 0:13:17]} a5 {[%emt 0:05:30]} 18. fxe5 {[%emt 0:06:26]} fxe5 {[%emt 0:00:08]} 19. Bc4 {[%emt 0:06:37]} f5 {[%emt 0:01:56]} 20. h3 {[%emt 0:08:34]} f4 {[%emt 0:10:14]} 21. Kf2 {[%emt 0:05:24]} g5 {[%emt 0:06:38]} 22. Rfd1 {[%emt 0:15:32]} a4 {[%emt 0:08:14]} 23. Be6 {[%emt 0:06:52]} Bxe6 {[%emt 0:07:38]} 24. Rxe6 {[%emt 0:00:00]} Rfd8 {[%emt 0:02:24]} 25. Red6 {[%emt 0:01:11]} Rxd6 {[%emt 0:00:35]} 26. Rxd6 {[%emt 0:00:01]} Ra5 {[%emt 0:00:29]} 27. Kf3 {[%emt 0:06:39]} Rc5 {[%emt 0:01:35]} 28. Rd3 {[%emt 0:04:40]} Kf6 {[%emt 0:00:05]} 29. Kg4 {[%emt 0:00:44]} Rc4 {[%emt 0:02:01]} 30. Rd6+ {[%emt 0:00:29]} Ke7 {[%emt 0:00:04]} 31. Rd2 {[%emt 0:01:57]} Rxc3 {[%emt 0:00:24]} 32. Kxg5 {[%emt 0:00:09]} Ke6 {[%emt 0:00:16]} 33. h4 {[%emt 0:01:08]} Rg3+ {[%emt 0:01:33]} 34. Kh6 {[%emt 0:00:26]} b5 {[%emt 0:04:47]} 35. h5 {[%emt 0:00:47]} c5 {[%emt 0:00:53]} 36. Kh7 {[%emt 0:00:47]} c4 {[%emt 0:01:02]} 37. h6 {[%emt 0:01:27]} c3 {[%emt 0:00:14]} 38. Rd5 {[%emt 0:02:42]} Rxg2 {[%emt 0:08:05]} 39. Rxb5 {[%emt 0:00:13]} f3 {[%emt 0:02:57]} 40. Rb8 {[%emt 0:00:00]} Ke7 {[%emt 0:00:00]} 41. Rb7+ {[%emt 0:02:30]} Kd6 {[%emt 0:19:08]} 42. Rf7 {[%emt 0:02:58]} Kc5 {[%emt 0:02:09]} 43. Rxf3 {[%emt 0:09:56]} Kb4 {[%emt 0:00:14]} 44. a3+ {[%emt 0:03:40]} Kc4 {[%emt 0:01:08]} 45. Kh8 {[%emt 0:02:03]} Rxc2 {[%emt 0:00:51]} 46. h7 {[%emt 0:00:10]} Rh2 {[%emt 0:00:33]} 47. Kg7 {[%emt 0:01:20]} c2 {[%emt 0:01:00]} 48. Rf7 {[%emt 0:02:34]} Kb3 {[%emt 0:02:07]} 49. Rc7 {[%emt 0:01:25]} Kb2 {[%emt 0:00:15]} 50. h8=Q {[%emt 0:03:23]} Rxh8 {[%emt 0:01:16]} 51. Kxh8 {[%emt 0:00:24]} c1=Q {[%emt 0:00:07]} 52. Rxc1 {[%emt 0:00:28]} Kxc1 {[%emt 0:00:03]} 53. Kg7 {[%emt 0:00:05]} Kb2 {[%emt 0:00:04]} 54. Kf6 {[%emt 0:00:10]} Kxa3 {[%emt 0:00:07]} 55. Kxe5 {[%emt 0:00:03]} Kb4 {[%emt 0:00:11]} 56. Kd6 {[%emt 0:00:46]} a3 {[%emt 0:00:05]} 57. e5 {[%emt 0:00:02]} a2 {[%emt 0:00:09]} 58. e6 {[%emt 0:00:07]} a1=Q {[%emt 0:00:07]} 59. e7 {[%emt 0:00:07]} Qa4 {[%emt 0:00:09]} 0-1

[Event "WYCC 2018 O14"]
[Site "Halkidiki"]
[Date "2018.10.28"]
[Round "9"]
[White "Nguyen, Huynh Minh Thien"]
[Black "Kouvidis, Ioannis"]
[Result "1-0"]
[ECO "A05"]
[WhiteElo "1996"]
[BlackElo "1896"]
[Annotator "NA"]
[PlyCount "167"]
[EventDate "2018.10.20"]
[EventType "swiss"]
[EventCountry "GRE"]
[SourceTitle "playchess.com"]
[Source "ChessBase"]
[SourceQuality "1"]
[TimeControl "40/5400+30:1800+30"]

1. Nf3 {[%emt 0:00:00]} Nf6 {[%emt 0:00:00]} 2. g3 {[%emt 0:00:00]} g6 {[%emt 0:00:03]} 3. Bg2 {[%emt 0:00:00]} Bg7 {[%emt 0:00:00]} 4. O-O {[%emt 0:00:00]} d6 {[%emt 0:00:00]} 5. d4 {[%emt 0:00:00]} O-O {[%emt 0:00:10]} 6. Re1 {[%emt 0:00:03]} Nbd7 {[%emt 0:00:12]} 7. e4 {[%emt 0:00:06]} e5 {[%emt 0:00:04]} 8. c3 {[%emt 0:00:04]} Re8 {[%emt 0:00:38]} 9. Nbd2 {[%emt 0:00:04]} b6 {[%emt 0:05:57]} 10. Qc2 {[%emt 0:00:18]} Bb7 {[%emt 0:11:36]} 11. a4 {[%emt 0:00:46]} d5 {[%emt 0:14:01]} 12. exd5 {[%emt 0:13:28]} exd4 {[%emt 0:03:49]} 13. Rxe8+ {[%emt 0:01:14]} Qxe8 {[%emt 0:00:23]} 14. c4 {[%emt 0:01:51]} c5 {[%emt 0:07:45]} 15. dxc6 {[%emt 0:10:28]} Bxc6 {[%emt 0:01:13]} 16. Nxd4 {[%emt 0:00:38]} Bxg2 {[%emt 0:06:12]} 17. Kxg2 {[%emt 0:00:28]} Ng4 {[%emt 0:08:47]} 18. N2f3 {[%emt 0:03:53]} Nc5 {[%emt 0:02:55]} 19. h3 {[%emt 0:11:34]} Ne5 {[%emt 0:01:10]} 20. Nxe5 {[%emt 0:00:41]} Bxe5 {[%emt 0:01:07]} 21. Nf3 Qc6 {[%emt 0:11:32]} 22. Be3 {[%emt 0:00:52]} Ne6 {[%emt 0:02:35]} 23. Rd1 {[%emt 0:02:42]} Bf6 {[%emt 0:00:23]} 24. b3 {[%emt 0:01:25]} Bg5 {[%emt 0:04:44]} 25. Bxg5 {[%emt 0:09:21]} Nxg5 {[%emt 0:00:07]} 26. Rd5 {[%emt 0:00:03]} Nxf3 {[%emt 0:00:21]} 27. Kxf3 {[%emt 0:00:02]} a6 {[%emt 0:03:51]} 28. Kg2 {[%emt 0:03:41]} Rc8 {[%emt 0:00:57]} 29. Qd3 {[%emt 0:01:55]} h5 {[%emt 0:02:34]} 30. h4 {[%emt 0:07:28]} Re8 {[%emt 0:01:03]} 31. Kh2 {[%emt 0:00:56]} Qf6 {[%emt 0:00:32]} 32. Qd4 {[%emt 0:00:33]} Qxd4 {[%emt 0:02:14]} 33. Rxd4 {[%emt 0:01:38]} Re6 {[%emt 0:00:02]} 34. Kg2 {[%emt 0:05:21]} a5 {[%emt 0:01:58]} 35. Kf3 {[%emt 0:02:51]} Kf8 {[%emt 0:00:22]} 36. Re4 {[%emt 0:00:43]} Rd6 {[%emt 0:00:19]} 37. Ke3 {[%emt 0:01:34]} Rd1 {[%emt 0:00:43]} 38. Rd4 {[%emt 0:01:44]} Rb1 {[%emt 0:00:02]} 39. Rd3 {[%emt 0:00:00]} Ke7 {[%emt 0:00:00]} 40. Kd4 {[%emt 0:00:00]} Kd6 {[%emt 0:00:00]} 41. Kc3+ {[%emt 0:04:28]} Kc6 {[%emt 0:05:37]} 42. Rf3 {[%emt 0:02:13]} f5 {[%emt 0:00:05]} 43. Rd3 {[%emt 0:02:37]} Rf1 {[%emt 0:01:33]} 44. Rd2 {[%emt 0:00:09]} Rc1+ {[%emt 0:01:24]} 45. Kd4 {[%emt 0:01:17]} Re1 {[%emt 0:01:46]} 46. Rd3 {[%emt 0:02:56]} Re4+ {[%emt 0:00:22]} 47. Kc3 {[%emt 0:00:04]} Re2 {[%emt 0:00:56]} 48. Rd2 {[%emt 0:02:46]} Re1 {[%emt 0:02:41]} 49. b4 {[%emt 0:06:54]} Rc1+ {[%emt 0:02:27]} 50. Kb3 {[%emt 0:01:01]} axb4 {[%emt 0:00:50]} 51. Kxb4 {[%emt 0:00:04]} Rb1+ {[%emt 0:00:35]} 52. Kc3 {[%emt 0:00:05]} Ra1 {[%emt 0:00:18]} 53. Kb3 {[%emt 0:01:05]} Rb1+ {[%emt 0:00:10]} 54. Rb2 {[%emt 0:00:11]} Rc1 {[%emt 0:00:26]} 55. Kb4 {[%emt 0:00:11]} Ra1 {[%emt 0:00:46]} 56. Re2 {[%emt 0:00:40]} Rb1+ {[%emt 0:02:28]} 57. Kc3 {[%emt 0:02:02]} Kd6 {[%emt 0:00:03]} 58. Rb2 {[%emt 0:00:40]} Rc1+ {[%emt 0:00:15]} 59. Kd2 {[%emt 0:00:56]} Rxc4 {[%emt 0:00:06]} 60. Rxb6+ {[%emt 0:00:03]} Ke5 {[%emt 0:03:46]} 61. Rxg6 {[%emt 0:07:08]} Rxa4 {[%emt 0:00:02]} 62. Ke2 {[%emt 0:00:24]} f4 {[%emt 0:04:03]} 63. Kf3 {[%emt 0:13:52]} Ra3+ {[%emt 0:00:51]} 64. Kg2 {[%emt 0:00:02]} f3+ {[%emt 0:00:42]} 65. Kh3 {[%emt 0:00:09]} Ra2 {[%emt 0:05:42]} 66. Rg5+ {[%emt 0:00:01]} Kf6 {[%emt 0:00:07]} 67. Rxh5 {[%emt 0:00:02]} Rxf2 {[%emt 0:00:08]} 68. Kg4 {[%emt 0:00:40]} Kg6 {[%emt 0:02:23]} 69. Rg5+ {[%emt 0:00:21]} Kh6 {[%emt 0:00:06]} 70. Rf5 {[%emt 0:00:05]} Kg6 {[%emt 0:00:26]} 71. Rxf3 {[%emt 0:00:42]} Ra2 {[%emt 0:00:10]} 72. h5+ {[%emt 0:01:03]} Kh6 {[%emt 0:00:03]} 73. Rf6+ {[%emt 0:00:06]} Kg7 {[%emt 0:00:01]} 74. Rb6 {[%emt 0:00:39]} Ra4+ {[%emt 0:00:09]} 75. Kg5 {[%emt 0:00:05]} Ra5+ {[%emt 0:00:19]} 76. Kh4 {[%emt 0:00:01]} Ra1 {[%emt 0:00:39]} 77. g4 {[%emt 0:00:04]} Rc1 {[%emt 0:00:16]} 78. Rb7+ {[%emt 0:01:27]} Kf6 {[%emt 0:00:13]} 79. Rb6+ {[%emt 0:00:18]} Kg7 {[%emt 0:00:05]} 80. h6+ {[%emt 0:00:31]} Kh7 {[%emt 0:00:15]} 81. Kh5 {[%emt 0:00:02]} Rc5+ {[%emt 0:02:39]} 82. g5 {[%emt 0:00:20]} Ra5 {[%emt 0:00:31]} 83. Rb7+ {[%emt 0:00:07]} Kh8 {[%emt 0:00:11]} 84. Re7 {[%emt 0:00:48]} 1-0